[Event "Titled Tuesday Blitz July 11 Early 2023"]
[White "Pinheiro, Iung Alicio de O."]
[Black "Sztokbant, Bernardo Vainzoff"]
[WhiteFideId "2104350"]
[BlackFideId "2115956"]
[WhiteElo "2602"]
[BlackElo "2434"]
[Result "0-1"]
[Round "3"]
[TimeControl "180+2"]
[Date "2023.07.11"]
[WhiteClock "0:00:00"]
[BlackClock "0:00:10"]
[Board "102"]

1. e4 {[%clk 0:02:51]}  c5 {[%clk 0:02:59]} 2. Nf3 {[%clk 0:02:50]}  e6 {[%clk 0:03:00]} 3. d3 {[%clk 0:02:49]}  Nc6 {[%clk 0:02:59]} 4. g3 {[%clk 0:02:49]}  g6 {[%clk 0:02:59]} 5. Bg5 {[%clk 0:02:48]}  Qc7 {[%clk 0:02:55]} 6. Nbd2 {[%clk 0:02:33]}  Bg7 {[%clk 0:02:54]} 7. c3 {[%clk 0:02:31]}  h6 {[%clk 0:02:53]} 8. Be3 {[%clk 0:02:29]}  b6 {[%clk 0:02:52]} 9. Bg2 {[%clk 0:02:22]}  Nge7 {[%clk 0:02:50]} 10. O-O {[%clk 0:02:16]}  d5 {[%clk 0:02:49]} 11. d4 {[%clk 0:02:03]}  cxd4 {[%clk 0:02:46]} 12. cxd4 {[%clk 0:02:01]}  Ba6 {[%clk 0:02:45]} 13. Re1 {[%clk 0:02:00]}  dxe4 {[%clk 0:02:36]} 14. Nxe4 {[%clk 0:01:59]}  O-O {[%clk 0:02:32]} 15. Rc1 {[%clk 0:01:53]}  Qd8 {[%clk 0:02:12]} 16. Qd2 {[%clk 0:01:49]}  Kh7 {[%clk 0:02:11]} 17. Red1 {[%clk 0:01:39]}  Rc8 {[%clk 0:02:10]} 18. h4 {[%clk 0:01:37]}  Nf5 {[%clk 0:02:01]} 19. h5 {[%clk 0:01:08]}  Ncxd4 {[%clk 0:01:32]} 20. hxg6+ {[%clk 0:01:02]}  fxg6 {[%clk 0:01:33]} 21. Nxd4 {[%clk 0:00:59]}  Rxc1 {[%clk 0:01:31]} 22. Qxc1 {[%clk 0:00:47]}  Nxd4 {[%clk 0:01:30]} 23. Rxd4 {[%clk 0:00:27]}  Bxd4 {[%clk 0:01:30]} 24. Bxh6 {[%clk 0:00:28]}  Rf5 {[%clk 0:01:09]} 25. Bf4 {[%clk 0:00:25]}  Kg8 {[%clk 0:00:49]} 26. Qc6 {[%clk 0:00:20]}  Qc8 {[%clk 0:00:40]} 27. Qd6 {[%clk 0:00:15]}  Bc5 {[%clk 0:00:23]} 28. Qd2 {[%clk 0:00:13]}  Bb7 {[%clk 0:00:18]} 29. Bg5 {[%clk 0:00:10]}  Bxe4 {[%clk 0:00:14]} 30. Bxe4 {[%clk 0:00:10]}  Rxf2 {[%clk 0:00:14]} 31. Qd3 {[%clk 0:00:00]}  Rd2+ {[%clk 0:00:10]} 0-1


[Site "https://www.chess.com"]

[Event "Titled Tuesday Blitz July 11 Early 2023"]
[White "KorolDimitriy75"]
[Black "Nefedov, Sergey"]
[BlackFideId "24113417"]
[WhiteElo "2430"]
[BlackElo "2599"]
[Result "0-1"]
[Round "3"]
[TimeControl "180+2"]
[Date "2023.07.11"]
[WhiteClock "0:00:00"]
[BlackClock "0:00:10"]
[Board "105"]

1. d4 {[%clk 0:03:00]}  d5 {[%clk 0:02:58]} 2. c4 {[%clk 0:03:01]}  e6 {[%clk 0:02:59]} 3. Nc3 {[%clk 0:03:01]}  Nf6 {[%clk 0:02:58]} 4. Bg5 {[%clk 0:03:01]}  Be7 {[%clk 0:02:58]} 5. cxd5 {[%clk 0:03:01]}  exd5 {[%clk 0:02:58]} 6. e3 {[%clk 0:03:01]}  c6 {[%clk 0:02:57]} 7. Bd3 {[%clk 0:03:01]}  Be6 {[%clk 0:02:57]} 8. Qc2 {[%clk 0:03:00]}  Nbd7 {[%clk 0:02:57]} 9. Nge2 {[%clk 0:03:00]}  Nh5 {[%clk 0:02:48]} 10. Bxe7 {[%clk 0:02:57]}  Qxe7 {[%clk 0:02:49]} 11. O-O {[%clk 0:02:57]}  g6 {[%clk 0:02:46]} 12. f3 {[%clk 0:02:56]}  c5 {[%clk 0:02:05]} 13. dxc5 {[%clk 0:02:27]}  Nxc5 {[%clk 0:02:00]} 14. Bb5+ {[%clk 0:02:26]}  Kf8 {[%clk 0:02:00]} 15. Nd4 {[%clk 0:02:13]}  Kg7 {[%clk 0:01:58]} 16. Rfe1 {[%clk 0:02:03]}  Rhd8 {[%clk 0:01:56]} 17. Rad1 {[%clk 0:02:02]}  Rac8 {[%clk 0:01:56]} 18. Bf1 {[%clk 0:01:51]}  Nf6 {[%clk 0:01:52]} 19. Qf2 {[%clk 0:01:38]}  a6 {[%clk 0:01:46]} 20. h3 {[%clk 0:01:33]}  b5 {[%clk 0:01:43]} 21. a3 {[%clk 0:01:32]}  h6 {[%clk 0:01:33]} 22. Rd2 {[%clk 0:01:31]}  Nfd7 {[%clk 0:01:23]} 23. Red1 {[%clk 0:01:29]}  Ne5 {[%clk 0:01:11]} 24. Nxe6+ {[%clk 0:01:04]}  fxe6 {[%clk 0:01:07]} 25. e4 {[%clk 0:00:48]}  Nb3 {[%clk 0:01:06]} 26. Re2 {[%clk 0:00:17]}  d4 {[%clk 0:01:05]} 27. Nb1 {[%clk 0:00:14]}  Nc4 {[%clk 0:00:38]} 28. Rd3 {[%clk 0:00:09]}  Nc1 {[%clk 0:00:35]} 29. Re1 {[%clk 0:00:07]}  Nxd3 {[%clk 0:00:35]} 30. Bxd3 {[%clk 0:00:08]}  Ne5 {[%clk 0:00:30]} 31. Bf1 {[%clk 0:00:08]}  d3 {[%clk 0:00:29]} 32. f4 {[%clk 0:00:08]}  Nc4 {[%clk 0:00:28]} 33. Rd1 {[%clk 0:00:08]}  Qc5 {[%clk 0:00:22]} 34. Qxc5 {[%clk 0:00:07]}  Rxc5 {[%clk 0:00:23]} 35. b3 {[%clk 0:00:06]}  Nb2 {[%clk 0:00:18]} 36. Rd2 {[%clk 0:00:05]}  Rc2 {[%clk 0:00:18]} 37. Kf2 {[%clk 0:00:05]}  Nd1+ {[%clk 0:00:15]} 38. Kf3 {[%clk 0:00:00]}  Nc3 {[%clk 0:00:10]} 0-1


[Site "https://www.chess.com"]

[Event "Titled Tuesday Blitz July 11 Early 2023"]
[White "Zavgorodniy, Sergiy"]
[Black "Rom, Jasper"]
[WhiteFideId "14110148"]
[BlackFideId "2023733"]
[WhiteElo "2594"]
[BlackElo "2426"]
[Result "1-0"]
[Round "3"]
[TimeControl "180+2"]
[Date "2023.07.11"]
[WhiteClock "0:00:12"]
[BlackClock "0:00:00"]
[Board "107"]

1. e4 {[%clk 0:03:00]}  e6 {[%clk 0:02:59]} 2. d3 {[%clk 0:03:00]}  d5 {[%clk 0:02:59]} 3. Qe2 {[%clk 0:02:59]}  Nf6 {[%clk 0:02:58]} 4. Nf3 {[%clk 0:02:59]}  Nc6 {[%clk 0:02:54]} 5. g3 {[%clk 0:02:59]}  dxe4 {[%clk 0:02:54]} 6. dxe4 {[%clk 0:02:59]}  Bc5 {[%clk 0:02:54]} 7. Bg2 {[%clk 0:02:58]}  e5 {[%clk 0:02:54]} 8. O-O {[%clk 0:02:56]}  O-O {[%clk 0:02:55]} 9. Bg5 {[%clk 0:02:27]}  h6 {[%clk 0:02:53]} 10. Rd1 {[%clk 0:02:27]}  Qe7 {[%clk 0:02:51]} 11. Bxf6 {[%clk 0:02:27]}  Qxf6 {[%clk 0:02:51]} 12. Nc3 {[%clk 0:02:28]}  Bg4 {[%clk 0:02:28]} 13. Nd5 {[%clk 0:02:26]}  Qg6 {[%clk 0:02:19]} 14. c3 {[%clk 0:02:22]}  Qh5 {[%clk 0:02:17]} 15. b4 {[%clk 0:01:57]}  Bd6 {[%clk 0:02:07]} 16. a3 {[%clk 0:01:48]}  Rae8 {[%clk 0:02:02]} 17. Ne3 {[%clk 0:01:29]}  Be6 {[%clk 0:01:55]} 18. h4 {[%clk 0:01:22]}  Qg6 {[%clk 0:01:38]} 19. Kh2 {[%clk 0:01:06]}  Ne7 {[%clk 0:01:28]} 20. Nd2 {[%clk 0:00:56]}  f5 {[%clk 0:01:24]} 21. exf5 {[%clk 0:00:56]}  Nxf5 {[%clk 0:01:25]} 22. Be4 {[%clk 0:00:46]}  Qf7 {[%clk 0:01:23]} 23. Nxf5 {[%clk 0:00:45]}  Bxf5 {[%clk 0:01:24]} 24. Bxf5 {[%clk 0:00:44]}  Qxf5 {[%clk 0:01:23]} 25. Ne4 {[%clk 0:00:45]}  Be7 {[%clk 0:01:09]} 26. Kg2 {[%clk 0:00:42]}  Qg6 {[%clk 0:01:00]} 27. h5 {[%clk 0:00:38]}  Qf5 {[%clk 0:00:58]} 28. Rd3 {[%clk 0:00:37]}  Rd8 {[%clk 0:00:55]} 29. Rad1 {[%clk 0:00:36]}  Rxd3 {[%clk 0:00:55]} 30. Rxd3 {[%clk 0:00:37]}  Kh7 {[%clk 0:00:51]} 31. a4 {[%clk 0:00:34]}  Rf7 {[%clk 0:00:46]} 32. Re3 {[%clk 0:00:29]}  Bd6 {[%clk 0:00:43]} 33. Qd3 {[%clk 0:00:23]}  Kh8 {[%clk 0:00:26]} 34. f3 {[%clk 0:00:20]}  Qxh5 {[%clk 0:00:15]} 35. Nxd6 {[%clk 0:00:16]}  Rd7 {[%clk 0:00:15]} 36. Qf5 {[%clk 0:00:12]}  Qxf5 {[%clk 0:00:03]} 37. Nxf5 {[%clk 0:00:13]}  Rd2+ {[%clk 0:00:03]} 38. Kh3 {[%clk 0:00:14]}  Kh7 {[%clk 0:00:01]} 39. Rxe5 {[%clk 0:00:13]}  g6 {[%clk 0:00:01]} 40. Re7+ {[%clk 0:00:13]}  Kg8 {[%clk 0:00:02]} 41. Nxh6+ {[%clk 0:00:13]}  Kf8 {[%clk 0:00:02]} 42. Rf7+ {[%clk 0:00:14]}  Ke8 {[%clk 0:00:03]} 43. Rxc7 {[%clk 0:00:14]}  Rd3 {[%clk 0:00:03]} 44. Kg4 {[%clk 0:00:13]}  Kd8 {[%clk 0:00:01]} 45. Rxb7 {[%clk 0:00:13]}  Rxc3 {[%clk 0:00:01]} 46. Rxa7 {[%clk 0:00:13]}  Rc4+ {[%clk 0:00:02]} 47. f4 {[%clk 0:00:13]}  Rxb4 {[%clk 0:00:02]} 48. Kg5 {[%clk 0:00:13]}  Rb3 {[%clk 0:00:00]} 49. g4 {[%clk 0:00:12]} 1-0


[Site "https://www.chess.com"]

[Event "Titled Tuesday Blitz July 11 Early 2023"]
[White "Mazurkiewicz, Michal"]
[Black "Al-Tarboush, Ward"]
[WhiteFideId "1124943"]
[BlackFideId "7601450"]
[WhiteElo "2424"]
[BlackElo "2593"]
[Result "0-1"]
[Round "3"]
[TimeControl "180+2"]
[Date "2023.07.11"]
[WhiteClock "0:00:00"]
[BlackClock "0:01:33"]
[Board "108"]

1. e4 {[%clk 0:02:59]}  b6 {[%clk 0:02:59]} 2. g3 {[%clk 0:02:59]}  Bb7 {[%clk 0:02:59]} 3. Bg2 {[%clk 0:02:59]}  e5 {[%clk 0:02:59]} 4. d3 {[%clk 0:02:59]}  Nf6 {[%clk 0:02:59]} 5. Nf3 {[%clk 0:02:59]}  Nc6 {[%clk 0:02:58]} 6. O-O {[%clk 0:02:59]}  Bc5 {[%clk 0:02:58]} 7. c3 {[%clk 0:03:00]}  d5 {[%clk 0:02:56]} 8. b4 {[%clk 0:02:59]}  Bd6 {[%clk 0:02:54]} 9. Nbd2 {[%clk 0:02:59]}  O-O {[%clk 0:02:52]} 10. Bb2 {[%clk 0:02:59]}  a5 {[%clk 0:02:48]} 11. a3 {[%clk 0:02:59]}  axb4 {[%clk 0:02:39]} 12. axb4 {[%clk 0:03:00]}  d4 {[%clk 0:02:39]} 13. cxd4 {[%clk 0:02:54]}  Nxd4 {[%clk 0:02:32]} 14. Bxd4 {[%clk 0:02:52]}  exd4 {[%clk 0:02:28]} 15. e5 {[%clk 0:02:52]}  Bxb4 {[%clk 0:02:15]} 16. Rxa8 {[%clk 0:02:46]}  Bxa8 {[%clk 0:02:11]} 17. exf6 {[%clk 0:02:46]}  Qxf6 {[%clk 0:02:12]} 18. Ne4 {[%clk 0:02:45]}  Bxe4 {[%clk 0:02:12]} 19. dxe4 {[%clk 0:02:45]}  c5 {[%clk 0:02:12]} 20. e5 {[%clk 0:02:43]}  Qe6 {[%clk 0:02:11]} 21. Qd3 {[%clk 0:02:37]}  Bc3 {[%clk 0:02:11]} 22. Qe4 {[%clk 0:02:33]}  b5 {[%clk 0:02:08]} 23. h4 {[%clk 0:02:25]}  h6 {[%clk 0:02:07]} 24. Kh2 {[%clk 0:02:18]}  b4 {[%clk 0:02:07]} 25. Bh3 {[%clk 0:02:18]}  Qc4 {[%clk 0:02:06]} 26. e6 {[%clk 0:02:16]}  f5 {[%clk 0:02:02]} 27. Qc6 {[%clk 0:01:44]}  Qe2 {[%clk 0:02:01]} 28. Qd5 {[%clk 0:01:20]}  Qe4 {[%clk 0:01:59]} 29. Qxe4 {[%clk 0:00:53]}  fxe4 {[%clk 0:02:00]} 30. Ne5 {[%clk 0:00:53]}  Re8 {[%clk 0:02:00]} 31. Bf5 {[%clk 0:00:42]}  e3 {[%clk 0:01:49]} 32. fxe3 {[%clk 0:00:40]}  dxe3 {[%clk 0:01:50]} 33. Rf3 {[%clk 0:00:23]}  Bxe5 {[%clk 0:01:43]} 34. Rxe3 {[%clk 0:00:23]}  Bd4 {[%clk 0:01:43]} 35. Re4 {[%clk 0:00:15]}  b3 {[%clk 0:01:43]} 36. e7 {[%clk 0:00:10]}  b2 {[%clk 0:01:37]} 37. Re1 {[%clk 0:00:00]}  Kf7 {[%clk 0:01:33]} 0-1


[Site "https://www.chess.com"]

[Event "Titled Tuesday Blitz July 11 Early 2023"]
[White "Piesik, Piotr"]
[Black "Nikologorsky, Matfei"]
[WhiteFideId "1136194"]
[BlackFideId "24102474"]
[WhiteElo "2592"]
[BlackElo "2424"]
[Result "1-0"]
[Round "3"]
[TimeControl "180+2"]
[Date "2023.07.11"]
[WhiteClock "0:02:17"]
[BlackClock "0:00:54"]
[Board "109"]

1. Nf3 {[%clk 0:02:54]}  Nf6 {[%clk 0:02:59]} 2. g3 {[%clk 0:02:54]}  b6 {[%clk 0:02:56]} 3. Bg2 {[%clk 0:02:55]}  Bb7 {[%clk 0:02:56]} 4. O-O {[%clk 0:02:54]}  e6 {[%clk 0:02:57]} 5. c4 {[%clk 0:02:55]}  d6 {[%clk 0:02:54]} 6. Nc3 {[%clk 0:02:55]}  Nbd7 {[%clk 0:02:55]} 7. d3 {[%clk 0:02:55]}  Be7 {[%clk 0:02:52]} 8. e4 {[%clk 0:02:55]}  O-O {[%clk 0:02:46]} 9. Ne1 {[%clk 0:02:55]}  d5 {[%clk 0:02:38]} 10. cxd5 {[%clk 0:02:54]}  exd5 {[%clk 0:02:37]} 11. f4 {[%clk 0:02:48]}  dxe4 {[%clk 0:02:29]} 12. dxe4 {[%clk 0:02:49]}  Nc5 {[%clk 0:02:29]} 13. e5 {[%clk 0:02:49]}  Bxg2 {[%clk 0:02:02]} 14. Nxg2 {[%clk 0:02:41]}  Nfe4 {[%clk 0:01:54]} 15. Be3 {[%clk 0:02:35]}  Nxc3 {[%clk 0:01:49]} 16. bxc3 {[%clk 0:02:35]}  Qc8 {[%clk 0:01:47]} 17. Qf3 {[%clk 0:02:34]}  Qf5 {[%clk 0:01:31]} 18. Rfd1 {[%clk 0:02:31]}  Rad8 {[%clk 0:01:30]} 19. Bf2 {[%clk 0:02:24]}  h5 {[%clk 0:01:22]} 20. Ne3 {[%clk 0:02:24]}  Qe4 {[%clk 0:01:16]} 21. Qxh5 {[%clk 0:02:21]}  Nd3 {[%clk 0:01:05]} 22. Qf5 {[%clk 0:02:18]}  Nxf2 {[%clk 0:01:04]} 23. Kxf2 {[%clk 0:02:18]}  Qc4 {[%clk 0:00:54]} 24. Nxc4 {[%clk 0:02:17]} 1-0


[Site "https://www.chess.com"]

[Event "Titled Tuesday Blitz July 11 Early 2023"]
[White "whiteglovethief"]
[Black "Arat, Ufuk Sezen"]
[BlackFideId "6309089"]
[WhiteElo "2416"]
[BlackElo "2588"]
[Result "1/2-1/2"]
[Round "3"]
[TimeControl "180+2"]
[Date "2023.07.11"]
[WhiteClock "0:00:17"]
[BlackClock "0:00:40"]
[Board "112"]

1. d4 {[%clk 0:03:00]}  Nf6 {[%clk 0:02:59]} 2. c4 {[%clk 0:03:00]}  e6 {[%clk 0:03:00]} 3. Nf3 {[%clk 0:03:00]}  b6 {[%clk 0:03:00]} 4. a3 {[%clk 0:02:59]}  Bb7 {[%clk 0:03:01]} 5. Nc3 {[%clk 0:02:59]}  d5 {[%clk 0:03:00]} 6. cxd5 {[%clk 0:03:00]}  Nxd5 {[%clk 0:03:00]} 7. e4 {[%clk 0:03:00]}  Nxc3 {[%clk 0:03:00]} 8. bxc3 {[%clk 0:03:00]}  c5 {[%clk 0:03:00]} 9. Bb5+ {[%clk 0:02:59]}  Bc6 {[%clk 0:02:44]} 10. Bxc6+ {[%clk 0:02:46]}  Nxc6 {[%clk 0:02:45]} 11. Qa4 {[%clk 0:02:32]}  Qd7 {[%clk 0:02:44]} 12. d5 {[%clk 0:02:30]}  Na5 {[%clk 0:02:31]} 13. Qxd7+ {[%clk 0:02:21]}  Kxd7 {[%clk 0:02:32]} 14. dxe6+ {[%clk 0:02:21]}  Kxe6 {[%clk 0:02:30]} 15. O-O {[%clk 0:02:17]}  f6 {[%clk 0:02:31]} 16. e5 {[%clk 0:02:06]}  fxe5 {[%clk 0:02:23]} 17. Re1 {[%clk 0:02:06]}  Bd6 {[%clk 0:02:23]} 18. Bf4 {[%clk 0:02:05]}  Nc4 {[%clk 0:02:17]} 19. Nxe5 {[%clk 0:01:59]}  Bxe5 {[%clk 0:02:05]} 20. Bxe5 {[%clk 0:01:59]}  Kf7 {[%clk 0:01:55]} 21. Re4 {[%clk 0:01:52]}  Nxe5 {[%clk 0:01:48]} 22. Rxe5 {[%clk 0:01:52]}  Rhe8 {[%clk 0:01:49]} 23. Rxe8 {[%clk 0:01:48]}  Rxe8 {[%clk 0:01:50]} 24. Kf1 {[%clk 0:01:48]}  Re4 {[%clk 0:01:49]} 25. a4 {[%clk 0:01:45]}  a6 {[%clk 0:01:43]} 26. Rb1 {[%clk 0:01:43]}  Rxa4 {[%clk 0:01:42]} 27. Rxb6 {[%clk 0:01:42]}  Ra3 {[%clk 0:01:41]} 28. Ke2 {[%clk 0:01:41]}  a5 {[%clk 0:01:29]} 29. Rb5 {[%clk 0:01:36]}  c4 {[%clk 0:01:22]} 30. Rb2 {[%clk 0:01:36]}  a4 {[%clk 0:01:16]} 31. Rb4 {[%clk 0:01:29]}  Rxc3 {[%clk 0:01:17]} 32. Rxa4 {[%clk 0:01:29]}  Rc2+ {[%clk 0:01:17]} 33. Ke3 {[%clk 0:01:28]}  c3 {[%clk 0:01:17]} 34. Rc4 {[%clk 0:01:24]}  Rc1 {[%clk 0:01:17]} 35. Kd3 {[%clk 0:01:20]}  Rg1 {[%clk 0:01:16]} 36. g3 {[%clk 0:01:18]}  Rg2 {[%clk 0:01:16]} 37. Rf4+ {[%clk 0:01:14]}  Ke6 {[%clk 0:01:02]} 38. h4 {[%clk 0:01:14]}  Rg1 {[%clk 0:00:50]} 39. Kxc3 {[%clk 0:01:14]}  Rd1 {[%clk 0:00:51]} 40. Kc2 {[%clk 0:01:14]}  Rd8 {[%clk 0:00:51]} 41. Rf3 {[%clk 0:01:12]}  Rd7 {[%clk 0:00:51]} 42. Rd3 {[%clk 0:01:10]}  Rf7 {[%clk 0:00:51]} 43. f3 {[%clk 0:01:10]}  Ke5 {[%clk 0:00:48]} 44. Kd2 {[%clk 0:01:10]}  Ra7 {[%clk 0:00:49]} 45. Ke3 {[%clk 0:01:10]}  Rc7 {[%clk 0:00:49]} 46. g4 {[%clk 0:01:09]}  Rb7 {[%clk 0:00:46]} 47. h5 {[%clk 0:01:09]}  g6 {[%clk 0:00:44]} 48. h6 {[%clk 0:01:04]}  Re7 {[%clk 0:00:44]} 49. Rd8 {[%clk 0:00:56]}  Kf6+ {[%clk 0:00:42]} 50. Kf4 {[%clk 0:00:56]}  g5+ {[%clk 0:00:42]} 51. Kg3 {[%clk 0:00:56]}  Re6 {[%clk 0:00:41]} 52. Rd7 {[%clk 0:00:48]}  Kg6 {[%clk 0:00:39]} 53. Rc7 {[%clk 0:00:25]}  Kxh6 {[%clk 0:00:39]} 54. Rd7 {[%clk 0:00:25]}  Kg6 {[%clk 0:00:39]} 55. Rc7 {[%clk 0:00:25]}  h5 {[%clk 0:00:39]} 56. gxh5+ {[%clk 0:00:24]}  Kxh5 {[%clk 0:00:40]} 57. Rc5 {[%clk 0:00:23]}  Rf6 {[%clk 0:00:36]} 58. Rd5 {[%clk 0:00:21]}  Rf4 {[%clk 0:00:36]} 59. Rc5 {[%clk 0:00:20]}  Ra4 {[%clk 0:00:37]} 60. Rd5 {[%clk 0:00:20]}  Kg6 {[%clk 0:00:38]} 61. Re5 {[%clk 0:00:20]}  Ra1 {[%clk 0:00:37]} 62. Rd5 {[%clk 0:00:20]}  Rg1+ {[%clk 0:00:37]} 63. Kf2 {[%clk 0:00:20]}  Rh1 {[%clk 0:00:35]} 64. Kg2 {[%clk 0:00:20]}  Rh4 {[%clk 0:00:35]} 65. Kg3 {[%clk 0:00:20]}  Kh5 {[%clk 0:00:36]} 66. Rd8 {[%clk 0:00:20]}  Ra4 {[%clk 0:00:36]} 67. Rd5 {[%clk 0:00:19]}  Ra3 {[%clk 0:00:35]} 68. Rc5 {[%clk 0:00:19]}  Re3 {[%clk 0:00:35]} 69. Rd5 {[%clk 0:00:19]}  Kg6 {[%clk 0:00:36]} 70. Rc5 {[%clk 0:00:19]}  Re6 {[%clk 0:00:36]} 71. Kg4 {[%clk 0:00:18]}  Rd6 {[%clk 0:00:34]} 72. Rxg5+ {[%clk 0:00:18]}  Kh6 {[%clk 0:00:35]} 73. Re5 {[%clk 0:00:18]}  Kg6 {[%clk 0:00:35]} 74. f4 {[%clk 0:00:17]}  Rd1 {[%clk 0:00:36]} 75. f5+ {[%clk 0:00:17]}  Kf6 {[%clk 0:00:37]} 76. Re6+ {[%clk 0:00:17]}  Kf7 {[%clk 0:00:37]} 77. Ra6 {[%clk 0:00:16]}  Rg1+ {[%clk 0:00:38]} 78. Kf4 {[%clk 0:00:16]}  Rf1+ {[%clk 0:00:39]} 79. Kg4 {[%clk 0:00:16]}  Rg1+ {[%clk 0:00:39]} 80. Kf4 {[%clk 0:00:16]}  Rf1+ {[%clk 0:00:40]} 81. Ke5 {[%clk 0:00:17]}  Re1+ {[%clk 0:00:40]} 82. Kf4 {[%clk 0:00:17]}  Rf1+ {[%clk 0:00:40]} 1/2-1/2


[Site "https://www.chess.com"]

[Event "Titled Tuesday Blitz July 11 Early 2023"]
[White "ATM622"]
[Black "Szyszylo, Rafal"]
[BlackFideId "1109626"]
[WhiteElo "2587"]
[BlackElo "2414"]
[Result "1-0"]
[Round "3"]
[TimeControl "180+2"]
[Date "2023.07.11"]
[WhiteClock "0:02:07"]
[BlackClock "0:01:42"]
[Board "113"]

1. d4 {[%clk 0:03:00]}  g6 {[%clk 0:02:59]} 2. g3 {[%clk 0:02:59]}  Nf6 {[%clk 0:02:58]} 3. Bg2 {[%clk 0:02:59]}  Bg7 {[%clk 0:02:59]} 4. Nf3 {[%clk 0:02:59]}  O-O {[%clk 0:02:59]} 5. O-O {[%clk 0:02:58]}  d6 {[%clk 0:02:55]} 6. c4 {[%clk 0:02:54]}  Nc6 {[%clk 0:02:56]} 7. Nc3 {[%clk 0:02:54]}  a6 {[%clk 0:02:55]} 8. e4 {[%clk 0:02:52]}  Rb8 {[%clk 0:02:54]} 9. d5 {[%clk 0:02:49]}  Na5 {[%clk 0:02:52]} 10. Qe2 {[%clk 0:02:45]}  e5 {[%clk 0:02:51]} 11. b4 {[%clk 0:02:43]}  Nxc4 {[%clk 0:02:48]} 12. Qxc4 {[%clk 0:02:43]}  c6 {[%clk 0:02:43]} 13. dxc6 {[%clk 0:02:43]}  bxc6 {[%clk 0:02:43]} 14. Qxc6 {[%clk 0:02:41]}  Bb7 {[%clk 0:02:42]} 15. Qc4 {[%clk 0:02:42]}  Rc8 {[%clk 0:02:41]} 16. Qb3 {[%clk 0:02:42]}  Qc7 {[%clk 0:02:38]} 17. Bb2 {[%clk 0:02:41]}  Nxe4 {[%clk 0:02:38]} 18. Nxe4 {[%clk 0:02:41]}  Bxe4 {[%clk 0:02:39]} 19. Rac1 {[%clk 0:02:41]}  Qb6 {[%clk 0:02:39]} 20. Rfd1 {[%clk 0:02:39]}  Rxc1 {[%clk 0:02:38]} 21. Bxc1 {[%clk 0:02:35]}  Rb8 {[%clk 0:02:32]} 22. Ng5 {[%clk 0:02:35]}  Bxg2 {[%clk 0:02:31]} 23. Qxf7+ {[%clk 0:02:35]}  Kh8 {[%clk 0:02:31]} 24. Qe6 {[%clk 0:02:20]}  Rf8 {[%clk 0:01:43]} 25. Nf7+ {[%clk 0:02:08]}  Kg8 {[%clk 0:01:42]} 26. Nh6+ {[%clk 0:02:05]}  Kh8 {[%clk 0:01:42]} 27. Qg8+ {[%clk 0:02:06]}  Rxg8 {[%clk 0:01:42]} 28. Nf7# {[%clk 0:02:07]} 1-0


[Site "https://www.chess.com"]

[Event "Titled Tuesday Blitz July 11 Early 2023"]
[White "Tanmay Jain"]
[Black "chess123456s"]
[WhiteFideId "45015481"]
[WhiteElo "2410"]
[BlackElo "2585"]
[Result "1-0"]
[Round "3"]
[TimeControl "180+2"]
[Date "2023.07.11"]
[WhiteClock "0:00:07"]
[BlackClock "0:00:10"]
[Board "115"]

1. Nf3 {[%clk 0:03:00]}  d5 {[%clk 0:02:59]} 2. d4 {[%clk 0:03:00]}  Nf6 {[%clk 0:02:59]} 3. g3 {[%clk 0:03:00]}  g6 {[%clk 0:02:57]} 4. Bg2 {[%clk 0:03:01]}  c6 {[%clk 0:02:57]} 5. O-O {[%clk 0:03:01]}  Bg7 {[%clk 0:02:58]} 6. c3 {[%clk 0:03:00]}  O-O {[%clk 0:02:58]} 7. Nbd2 {[%clk 0:03:01]}  Bf5 {[%clk 0:02:58]} 8. Nh4 {[%clk 0:02:59]}  Be6 {[%clk 0:02:58]} 9. e4 {[%clk 0:02:56]}  dxe4 {[%clk 0:02:56]} 10. Nxe4 {[%clk 0:02:57]}  Nxe4 {[%clk 0:02:51]} 11. Bxe4 {[%clk 0:02:58]}  Nd7 {[%clk 0:02:52]} 12. Qe2 {[%clk 0:02:53]}  Bd5 {[%clk 0:02:45]} 13. Bf4 {[%clk 0:02:38]}  Nb6 {[%clk 0:02:41]} 14. Nf3 {[%clk 0:02:36]}  Re8 {[%clk 0:02:31]} 15. Rfe1 {[%clk 0:02:34]}  Bxe4 {[%clk 0:02:25]} 16. Qxe4 {[%clk 0:02:35]}  Qd5 {[%clk 0:02:25]} 17. Be5 {[%clk 0:02:24]}  Rac8 {[%clk 0:02:10]} 18. Bxg7 {[%clk 0:02:23]}  Kxg7 {[%clk 0:02:10]} 19. b3 {[%clk 0:02:02]}  c5 {[%clk 0:01:57]} 20. c4 {[%clk 0:02:01]}  Qxe4 {[%clk 0:01:57]} 21. Rxe4 {[%clk 0:02:02]}  cxd4 {[%clk 0:01:57]} 22. Rxd4 {[%clk 0:02:03]}  e5 {[%clk 0:01:54]} 23. Rd6 {[%clk 0:01:53]}  e4 {[%clk 0:01:48]} 24. Ne1 {[%clk 0:01:41]}  Rcd8 {[%clk 0:01:41]} 25. Rad1 {[%clk 0:01:40]}  Rxd6 {[%clk 0:01:41]} 26. Rxd6 {[%clk 0:01:41]}  e3 {[%clk 0:01:42]} 27. f4 {[%clk 0:01:39]}  Re7 {[%clk 0:01:14]} 28. Kg2 {[%clk 0:01:36]}  Nd7 {[%clk 0:01:14]} 29. Kf3 {[%clk 0:01:19]}  Nc5 {[%clk 0:01:12]} 30. Rd5 {[%clk 0:01:18]}  Ne4 {[%clk 0:01:01]} 31. Rd3 {[%clk 0:01:07]}  e2 {[%clk 0:00:49]} 32. Re3 {[%clk 0:00:57]}  Nd2+ {[%clk 0:00:46]} 33. Kxe2 {[%clk 0:00:58]}  Rxe3+ {[%clk 0:00:46]} 34. Kxe3 {[%clk 0:00:59]}  Nf1+ {[%clk 0:00:47]} 35. Ke4 {[%clk 0:00:38]}  Nxh2 {[%clk 0:00:48]} 36. Ke5 {[%clk 0:00:32]}  Ng4+ {[%clk 0:00:42]} 37. Kd6 {[%clk 0:00:30]}  f6 {[%clk 0:00:26]} 38. Kc7 {[%clk 0:00:28]}  b6 {[%clk 0:00:24]} 39. Kb7 {[%clk 0:00:27]}  g5 {[%clk 0:00:25]} 40. fxg5 {[%clk 0:00:24]}  fxg5 {[%clk 0:00:26]} 41. Kxa7 {[%clk 0:00:24]}  h5 {[%clk 0:00:27]} 42. Ng2 {[%clk 0:00:21]}  Nf2 {[%clk 0:00:22]} 43. Kxb6 {[%clk 0:00:20]}  Ne4 {[%clk 0:00:23]} 44. c5 {[%clk 0:00:20]}  Nxg3 {[%clk 0:00:23]} 45. c6 {[%clk 0:00:20]}  Nf5 {[%clk 0:00:24]} 46. c7 {[%clk 0:00:18]}  Ne7 {[%clk 0:00:24]} 47. a4 {[%clk 0:00:16]}  h4 {[%clk 0:00:25]} 48. Ne3 {[%clk 0:00:15]}  Kf6 {[%clk 0:00:18]} 49. a5 {[%clk 0:00:11]}  h3 {[%clk 0:00:16]} 50. Ng4+ {[%clk 0:00:10]}  Kf5 {[%clk 0:00:17]} 51. Nh2 {[%clk 0:00:10]}  g4 {[%clk 0:00:18]} 52. a6 {[%clk 0:00:09]}  g3 {[%clk 0:00:17]} 53. a7 {[%clk 0:00:09]}  Nc8+ {[%clk 0:00:17]} 54. Ka6 {[%clk 0:00:07]}  g2 {[%clk 0:00:10]} 55. a8=Q {[%clk 0:00:06]}  g1=Q {[%clk 0:00:10]} 56. Qxc8+ {[%clk 0:00:06]}  Ke4 {[%clk 0:00:11]} 57. Qe8+ {[%clk 0:00:06]}  Kd3 {[%clk 0:00:11]} 58. c8=Q {[%clk 0:00:07]}  Qxh2 {[%clk 0:00:10]} 59. Qed7+ {[%clk 0:00:06]}  Ke2 {[%clk 0:00:09]} 60. Qce8+ {[%clk 0:00:07]}  Kf1 {[%clk 0:00:09]} 61. Qdf7+ {[%clk 0:00:07]}  Kg2 {[%clk 0:00:08]} 62. Qeg8+ {[%clk 0:00:08]}  Qg3 {[%clk 0:00:07]} 63. Qxg3+ {[%clk 0:00:08]}  Kxg3 {[%clk 0:00:07]} 64. Qd5 {[%clk 0:00:08]}  Kh2 {[%clk 0:00:07]} 65. b4 {[%clk 0:00:08]}  Kg1 {[%clk 0:00:07]} 66. b5 {[%clk 0:00:08]}  h2 {[%clk 0:00:08]} 67. b6 {[%clk 0:00:09]}  Kf2 {[%clk 0:00:08]} 68. b7 {[%clk 0:00:08]}  Ke1 {[%clk 0:00:08]} 69. b8=Q {[%clk 0:00:08]}  Ke2 {[%clk 0:00:09]} 70. Qb2+ {[%clk 0:00:08]}  Ke3 {[%clk 0:00:10]} 71. Qdd4+ {[%clk 0:00:07]}  Kf3 {[%clk 0:00:10]} 72. Qbf2# {[%clk 0:00:07]} 1-0


[Site "https://www.chess.com"]